bitfinex/quotes_SOLUSD_20250616
["timestamp","ask_amount","ask_price","bid_price","bid_amount"]
[1750036261977,30.62,151.84,151.81,5.0201943]
[1750036262673,8.4,151.85,151.83,5.0201943]
[1750036262889,30.54,151.84,151.77,32.58890313]
[1750036263105,30.54,151.84,151.83,5.0201943]
[1750036263288,30.54,151.84,151.82,5.0201943]
[1750036263798,30.52,151.84,151.83,5.0201943]
[1750036264006,30.5,151.84,151.82,5.0201943]
[1750036264685,30.5,151.84,151.81,5.0201943]
[1750036267403,30.5,151.84,151.77,26.0]
[1750036267608,30.5,151.84,151.81,5.0201943]
[1750036267908,30.4,151.83,151.81,5.0201943]
[1750036271906,30.4,151.83,151.82,5.0201943]
[1750036272408,30.4,151.83,151.81,5.0201943]
[1750036273902,30.4,151.83,151.82,5.0201943]
[1750036275701,8.4,151.85,151.82,5.0201943]
[1750036275907,38.18,151.87,151.84,5.0201943]
[1750036276090,38.18,151.87,151.86,5.0201943]
[1750036276598,38.18,151.87,151.85,5.0201943]
[1750036277813,38.18,151.87,151.84,5.0201943]
[1750036278015,38.18,151.87,151.83,5.0201943]
[1750036278410,38.18,151.87,151.85,5.0201943]
[1750036278791,38.18,151.87,151.81,1.6076]
[1750036279005,8.04,151.87,151.85,5.0201943]
[1750036279194,8.04,151.87,151.86,5.0201943]
[1750036281104,8.04,151.87,151.86,30.25485567]
[1750036281308,7.7,151.95,151.87,18.64964886]
[1750036281513,7.7,151.95,151.94,5.0201943]
[1750036282421,7.7,151.95,151.94,23.66984316]
[1750036282994,7.7,151.95,151.94,49.66984316]
[1750036284023,7.7,151.95,151.94,18.64964886]
[1750036284211,7.7,151.95,151.93,1.6585]
[1750036284449,7.7,151.95,151.94,5.0201943]
[1750036286224,7.7,151.95,151.92,5.0201943]
[1750036286397,7.7,151.95,151.9,18.64964886]
[1750036286398,7.7,151.95,151.93,5.0201943]
[1750036286606,7.7,151.95,151.94,5.0201943]
[1750036287613,7.7,151.95,151.91,5.0201943]
[1750036287821,30.0,151.94,151.91,5.0201943]
[1750036288004,30.0,151.94,151.92,5.0201943]
[1750036288203,30.0,151.94,151.91,5.0201943]
[1750036290100,35.0201943,151.94,151.89,5.0201943]
[1750036290300,30.0,151.94,151.89,5.0201943]
[1750036290611,5.0201943,151.93,151.86,18.64964886]
[1750036290921,5.0201943,151.93,151.88,5.0201943]
[1750036291330,30.0,151.94,151.86,5.0201943]
[1750036291331,5.0201943,151.91,151.86,5.0201943]
[1750036291506,34.9801943,151.9,151.85,6.5492943]
[1750036291709,29.96,151.89,151.85,6.5492943]
[1750036291939,29.96,151.89,151.83,26.0]
[1750036292112,29.96,151.89,151.86,5.0201943]
[1750036292436,29.96,151.89,151.87,5.0201943]
[1750036292632,26.0,151.95,151.88,5.0201943]
[1750036292945,7.7,151.92,151.91,5.0201943]
[1750036293109,7.7,151.92,151.87,18.64964886]
[1750036293307,7.7,151.92,151.91,5.0201943]
[1750036293523,7.7,151.92,151.9,5.0201943]
[1750036293829,7.7,151.92,151.87,18.64964886]
[1750036294035,7.7,151.92,151.9,5.0201943]
[1750036295422,7.7,151.92,151.91,5.0201943]
[1750036296131,7.7,151.92,151.87,18.64964886]
[1750036296339,7.7,151.92,151.89,5.0201943]
[1750036296707,7.7,151.92,151.88,5.0201943]
[1750036297534,12.7201943,151.92,151.85,18.64964886]
[1750036297717,5.0201943,151.91,151.86,5.0201943]
[1750036298028,29.82,151.9,151.86,5.0201943]
[1750036299613,5.0201943,151.89,151.82,26.0]
[1750036299831,34.8401943,151.9,151.86,5.0201943]
[1750036300027,29.82,151.9,151.83,5.0201943]
[1750036300229,29.82,151.9,151.87,5.0201943]
[1750036300544,34.8401943,151.9,151.85,5.0201943]
[1750036301209,34.8401943,151.9,151.84,5.0201943]
[1750036301210,5.0201943,151.89,151.84,5.0201943]
[1750036301410,34.8401943,151.9,151.85,5.0201943]
[1750036302005,29.82,151.9,151.86,5.0201943]
[1750036302618,29.7,151.89,151.86,5.0201943]
[1750036302912,5.0201943,151.88,151.81,1.5193]
[1750036303115,29.7,151.89,151.81,1.5193]
[1750036303116,5.0201943,151.87,151.81,1.5193]
[1750036303417,5.0201943,151.84,151.8,5.0201943]
[1750036303613,34.7001943,151.86,151.81,5.0201943]
[1750036303820,29.68,151.86,151.82,5.0201943]
[1750036304022,34.7001943,151.86,151.81,5.0201943]
[1750036304738,5.0201943,151.85,151.78,18.64964886]
[1750036304940,5.0201943,151.83,151.77,1.6107]
[1750036305141,5.0201943,151.81,151.77,6.6308943]
[1750036305435,29.64,151.8,151.76,5.0201943]
[1750036305813,29.64,151.8,151.77,5.0201943]
[1750036306140,7.7,151.82,151.79,5.0201943]
[1750036306317,37.32,151.82,151.81,5.0201943]
[1750036306512,7.7,151.82,151.81,5.0201943]
[1750036307036,7.7,151.82,151.79,1.6336]
[1750036307223,7.7,151.82,151.81,5.0201943]
[1750036307433,7.7,151.82,151.79,6.6537943]
[1750036307741,7.7,151.82,151.78,5.0201943]
[1750036307973,5.0201943,151.81,151.77,5.0201943]
[1750036308135,29.6,151.8,151.77,5.0201943]
[1750036309217,34.6201943,151.8,151.75,32.6314943]
[1750036309417,34.6201943,151.8,151.76,5.0201943]
[1750036309640,29.6,151.8,151.76,5.0201943]
[1750036309941,5.0201943,151.79,151.74,5.0201943]
[1750036310419,34.6201943,151.8,151.75,5.0201943]
[1750036310840,37.78491602,151.8,151.75,8.18491602]
[1750036311538,8.18491602,151.79,151.74,8.18491602]
[1750036312634,8.18491602,151.79,151.75,8.18491602]
[1750036313126,8.18491602,151.79,151.72,18.64964886]
[1750036313328,8.18491602,151.79,151.75,8.18491602]
[1750036314046,37.78491602,151.8,151.75,8.18491602]
[1750036314342,37.78491602,151.8,151.76,8.18491602]
[1750036314841,37.78491602,151.8,151.72,18.64964886]
[1750036315020,37.78491602,151.8,151.76,8.18491602]
[1750036315749,29.6,151.8,151.77,8.18491602]
[1750036316058,29.6,151.8,151.78,8.18491602]
[1750036316233,29.46,151.79,151.78,8.18491602]
[1750036316428,8.18491602,151.81,151.72,18.64964886]
[1750036316627,37.64491602,151.8,151.75,8.18491602]
[1750036316832,8.18491602,151.78,151.73,8.18491602]
[1750036317043,29.46,151.77,151.73,8.18491602]
[1750036317350,37.64491602,151.77,151.71,1.531]
[1750036317657,37.64491602,151.77,151.72,8.18491602]
[1750036318028,8.18491602,151.76,151.71,9.71591602]
[1750036318233,37.64491602,151.77,151.72,8.18491602]
[1750036318951,29.46,151.77,151.73,8.18491602]
[1750036319335,14.75781602,151.79,151.75,8.18491602]
[1750036319536,7.4,151.78,151.77,8.18491602]
[1750036319768,36.8,151.78,151.77,8.18491602]
[1750036320150,36.8,151.78,151.73,1.5982]
[1750036320457,44.98491602,151.78,151.74,8.18491602]
[1750036320763,44.98491602,151.78,151.72,26.0]
[1750036320958,36.8,151.78,151.74,8.18491602]
[1750036321252,36.8,151.78,151.72,26.0]
[1750036321635,36.8,151.78,151.74,8.18491602]
[1750036322044,36.8,151.78,151.73,8.18491602]
[1750036322045,44.98491602,151.78,151.73,8.18491602]
[1750036322627,44.98491602,151.78,151.74,8.18491602]
[1750036322827,36.8,151.78,151.75,8.18491602]
[1750036324769,36.8,151.78,151.76,8.18491602]
[1750036324978,36.8,151.78,151.69,1.5982]
[1750036324979,8.18491602,151.77,151.69,1.5982]
[1750036325142,8.18491602,151.73,151.68,8.18491602]
[1750036325464,29.3,151.72,151.68,8.18491602]
[1750036326349,29.3,151.72,151.69,8.18491602]
[1750036326553,29.3,151.72,151.7,8.18491602]
[1750036326755,29.3,151.72,151.69,8.18491602]
[1750036327254,29.3,151.72,151.68,8.18491602]
[1750036327468,29.3,151.72,151.65,1.6633]
[1750036327644,8.18491602,151.71,151.66,8.18491602]
[1750036328055,8.18491602,151.69,151.61,1.5995]
[1750036328263,8.18491602,151.67,151.61,1.5995]
[1750036328478,8.18491602,151.67,151.63,8.18491602]
[1750036328651,36.64,151.68,151.64,8.18491602]
[1750036329054,36.64,151.68,151.65,8.18491602]
[1750036329776,36.64,151.68,151.62,25.24506177]
[1750036329950,36.64,151.68,151.62,18.64964886]
[1750036330150,36.64,151.68,151.67,8.18491602]
[1750036330891,36.64,151.68,151.67,5.02797441]
[1750036331654,36.64,151.68,151.62,18.64964886]
[1750036331655,36.64,151.68,151.66,5.02797441]
[1750036331968,36.64,151.68,151.65,5.02797441]
[1750036333689,36.64,151.68,151.66,5.02797441]
[1750036334265,36.64,151.68,151.65,5.02797441]
[1750036334462,36.64,151.68,151.66,5.02797441]
[1750036334883,7.4,151.68,151.67,5.02797441]
[1750036336708,7.4,151.68,151.62,18.64964886]
[1750036336848,7.4,151.68,151.64,8.19670318]
[1750036337051,7.4,151.68,151.67,8.19670318]
[1750036337280,36.48,151.68,151.67,8.19670318]
[1750036337659,36.48,151.68,151.66,8.19670318]
[1750036337856,36.48,151.68,151.62,18.64964886]
[1750036338166,44.67670318,151.68,151.64,8.19670318]
[1750036338369,36.48,151.68,151.64,8.19670318]
[1750036338554,36.48,151.68,151.65,8.19670318]
[1750036339061,36.48,151.68,151.64,8.19670318]
[1750036339257,44.67670318,151.68,151.64,8.19670318]
[1750036339457,36.48,151.68,151.64,8.19670318]
[1750036339652,36.48,151.68,151.61,1.5995]
[1750036339980,36.48,151.68,151.67,8.19670318]
[1750036339981,7.4,151.68,151.67,8.19670318]
[1750036340159,7.4,151.68,151.63,0.28432314]
[1750036340365,7.4,151.68,151.67,8.19670318]
[1750036342208,7.4,151.68,151.66,8.19670318]
[1750036342513,29.02,151.67,151.64,26.0]
[1750036342675,29.02,151.67,151.62,44.64964886]
[1750036343799,29.02,151.67,151.66,8.19670318]
[1750036345290,7.4,151.68,151.66,8.19670318]
[1750036345482,7.4,151.68,151.67,8.19670318]
[1750036348506,36.32,151.68,151.67,8.19670318]
[1750036348699,7.4,151.68,151.67,8.19670318]
[1750036348895,36.3,151.68,151.67,8.19670318]
[1750036351809,36.3,151.68,151.62,140.44504975]
[1750036351990,36.3,151.68,151.67,8.19670318]
[1750036352788,36.3,151.68,151.66,8.19670318]
[1750036353189,36.3,151.68,151.65,8.19670318]
[1750036353396,36.3,151.68,151.61,1.88382314]
[1750036353397,44.49670318,151.68,151.63,8.19670318]
[1750036353715,8.19670318,151.67,151.62,8.19670318]
[1750036353898,28.82,151.66,151.61,8.19670318]
[1750036354105,28.82,151.66,151.62,8.19670318]
[1750036354522,28.82,151.66,151.63,8.19670318]
[1750036355216,28.82,151.66,151.62,8.19670318]
[1750036355689,37.01670318,151.66,151.61,8.19670318]
[1750036356091,28.82,151.66,151.62,8.19670318]
[1750036356915,28.82,151.66,151.62,5.03112478]
[1750036357632,28.82,151.66,151.64,5.03112478]
[1750036358002,28.82,151.66,151.63,5.03112478]
[1750036358495,28.82,151.66,151.62,5.03112478]
[1750036358815,28.82,151.66,151.62,8.19912167]
[1750036359327,8.19912167,151.64,151.59,8.19912167]
[1750036359553,8.19912167,151.62,151.57,8.19912167]
[1750036359816,28.76,151.61,151.57,8.19912167]
[1750036360016,28.76,151.61,151.56,1.3888006]
[1750036360317,28.76,151.61,151.57,8.19912167]
[1750036360688,28.76,151.61,151.58,8.19912167]
[1750036360891,6.6505,151.68,151.6,8.19912167]
[1750036361095,7.08,151.67,151.66,8.19912167]
[1750036361296,35.84,151.67,151.66,8.19912167]
[1750036362491,35.84,151.67,151.61,18.64964886]
[1750036362717,35.84,151.67,151.66,8.19912167]
[1750036363124,35.84,151.67,151.61,26.0]
[1750036363294,35.84,151.67,151.64,8.19912167]
[1750036363810,35.84,151.67,151.65,8.19912167]
[1750036364717,35.84,151.67,151.61,26.0]
[1750036364899,35.84,151.67,151.65,8.19912167]
[1750036367202,7.08,151.67,151.66,8.19912167]
[1750036367405,35.78,151.67,151.61,26.0]
[1750036367614,35.78,151.67,151.66,8.19912167]
[1750036368203,7.08,151.67,151.66,8.19912167]
[1750036368541,35.74,151.67,151.66,8.19912167]
[1750036370111,35.74,151.67,151.62,18.64964886]
[1750036370328,43.93912167,151.67,151.64,26.0]
[1750036370504,35.74,151.67,151.64,26.0]
[1750036370709,35.74,151.67,151.64,34.19912167]
[1750036373016,7.08,151.67,151.66,8.19912167]
[1750036373428,35.68,151.67,151.66,8.19912167]
[1750036373929,7.08,151.67,151.66,8.19912167]
[1750036374130,35.68,151.67,151.66,8.19912167]
[1750036375523,7.08,151.67,151.66,8.19912167]
[1750036375727,35.68,151.67,151.66,8.19912167]
[1750036377734,7.08,151.67,151.66,8.19912167]
[1750036377939,7.08,151.67,151.66,52.84877053]
[1750036378234,7.08,151.67,151.66,26.84877053]
[1750036378437,7.08,151.67,151.66,52.84877053]
[1750036378737,7.08,151.67,151.66,26.84877053]
[1750036380128,7.08,151.67,151.66,18.64964886]
[1750036380450,7.08,151.67,151.61,89.2]
[1750036380451,35.68,151.67,151.64,8.19912167]
[1750036381212,35.68,151.67,151.63,8.19912167]
[1750036381436,43.87912167,151.67,151.62,34.19912167]
[1750036381816,8.19912167,151.66,151.6,1.6195]
[1750036382132,28.6,151.65,151.61,8.19912167]
[1750036382940,28.6,151.65,151.63,8.19912167]
[1750036383138,28.6,151.65,151.62,8.19912167]
[1750036383319,28.6,151.65,151.64,8.19912167]
[1750036383743,35.4,151.65,151.63,8.19912167]
[1750036384552,6.88292314,151.7,151.64,8.19912167]
[1750036384841,6.8,151.69,151.66,8.19912167]
[1750036385046,35.4,151.69,151.66,8.19912167]
[1750036385748,6.8,151.69,151.67,8.19912167]
[1750036385917,6.8,151.69,151.68,8.19912167]
[1750036386312,6.8,151.69,151.64,0.28432314]
[1750036386520,6.8,151.69,151.68,8.19912167]
[1750036386813,35.4,151.69,151.68,8.19912167]
[1750036387644,6.8,151.69,151.68,8.19912167]
[1750036390259,6.8,151.69,151.68,26.84877053]
[1750036391938,6.8,151.69,151.67,8.19912167]
[1750036392241,28.6,151.68,151.67,8.19912167]
[1750036395530,6.8,151.69,151.67,8.19912167]
[1750036395848,28.58,151.68,151.67,8.19912167]
[1750036396641,28.58,151.68,151.63,44.64964886]
[1750036396934,28.58,151.68,151.66,8.19912167]
[1750036397340,28.58,151.68,151.65,8.19912167]
[1750036397650,28.58,151.68,151.67,8.19912167]
[1750036397956,6.8,151.69,151.68,18.64964886]
[1750036398249,6.8,151.69,151.68,26.84877053]
[1750036398626,6.8,151.69,151.68,8.19912167]
[1750036400959,6.8,151.69,151.61,18.64964886]
[1750036401253,28.58,151.68,151.65,8.19912167]
[1750036401430,28.58,151.68,151.66,8.19912167]
[1750036402044,6.76,151.67,151.66,8.19912167]
[1750036403136,28.58,151.68,151.66,8.19912167]
[1750036403342,28.58,151.68,151.67,8.19912167]
[1750036403539,28.58,151.69,151.67,8.19912167]
[1750036403934,28.58,151.69,151.68,8.19912167]
[1750036404228,28.58,151.69,151.64,18.64964886]
[1750036404433,28.58,151.69,151.67,8.19912167]
[1750036407559,28.58,151.69,151.68,8.19912167]
[1750036410961,6.76,151.7,151.68,8.19912167]
[1750036411166,6.76,151.7,151.69,8.19912167]
[1750036411962,35.34,151.7,151.69,8.19912167]
[1750036413046,35.34,151.7,151.68,8.19912167]
[1750036413544,35.34,151.7,151.66,8.19912167]
[1750036413760,43.53912167,151.7,151.65,89.2]
[1750036413936,8.19912167,151.69,151.64,8.19912167]
[1750036414135,28.58,151.68,151.64,8.19912167]
[1750036414369,36.77912167,151.68,151.57,18.64964886]
[1750036414662,36.77912167,151.68,151.62,8.19912167]
[1750036414663,8.19912167,151.67,151.62,8.19912167]
[1750036414838,28.58,151.66,151.6,26.0]
[1750036415035,28.58,151.66,151.62,8.19912167]
[1750036416240,28.58,151.66,151.6,26.9058428]
[1750036416241,28.58,151.66,151.63,8.19912167]
[1750036417849,1.5921,151.69,151.65,8.19912167]
[1750036418176,1.5921,151.69,151.62,8.19912167]
[1750036418177,36.77912167,151.68,151.62,8.19912167]
[1750036418481,8.19912167,151.65,151.6,0.9058428]
[1750036418764,28.58,151.64,151.6,9.10496447]
[1750036419270,36.77912167,151.64,151.6,9.10496447]
[1750036420069,8.19912167,151.63,151.6,0.9058428]
[1750036421081,36.77912167,151.64,151.6,0.9058428]
[1750036421869,8.19912167,151.63,151.6,0.9058428]
[1750036423159,8.19912167,151.62,151.6,0.9058428]
[1750036423366,28.58,151.61,151.6,0.9058428]
[1750036423574,28.58,151.61,151.47,10.80772687]
[1750036423575,26.0,151.58,151.47,10.80772687]
[1750036423788,26.0,151.54,151.47,2.74896533]
[1750036423947,0.14216157,151.53,151.47,2.74896533]
[1750036424282,36.48,151.52,151.47,2.74896533]
[1750036424448,36.48,151.52,151.5,8.19912167]
[1750036425075,36.48,151.52,151.48,18.64964886]
[1750036425247,36.48,151.52,151.51,8.19912167]
[1750036425447,36.48,151.52,151.48,18.64964886]
[1750036425874,16.01501147,151.57,151.51,8.19912167]
[1750036426180,7.12,151.55,151.54,8.19912167]
[1750036427067,36.58,151.55,151.54,8.19912167]
[1750036427270,36.62,151.55,151.51,18.64964886]
[1750036427474,36.62,151.55,151.54,8.19912167]
[1750036427961,7.12,151.55,151.54,26.84877053]
[1750036429180,7.12,151.55,151.53,18.64964886]
[1750036429351,7.12,151.55,151.54,8.19912167]
[1750036429867,7.12,151.55,151.5,1.536]
[1750036430054,29.58,151.54,151.52,8.19912167]
[1750036430252,29.58,151.54,151.5,1.536]
[1750036430452,29.58,151.54,151.52,8.19912167]
[1750036432882,29.58,151.54,151.49,18.64964886]
[1750036433180,29.58,151.54,151.51,8.19912167]
[1750036434386,29.58,151.54,151.48,18.64964886]
[1750036434643,37.77912167,151.54,151.47,2.74896533]
[1750036434757,37.77912167,151.54,151.49,8.19912167]
[1750036435155,29.58,151.54,151.47,2.74896533]
[1750036435356,37.77912167,151.54,151.47,2.74896533]
[1750036435664,7.12,151.55,151.52,8.19912167]
[1750036435876,29.54,151.54,151.52,8.19912167]
[1750036436182,29.54,151.54,151.48,18.64964886]
[1750036436183,29.54,151.54,151.51,8.19912167]
[1750036436368,29.58,151.53,151.52,8.19912167]
[1750036436688,29.58,151.53,151.51,8.19912167]
[1750036436980,29.58,151.53,151.52,8.19912167]
[1750036437158,29.58,151.53,151.48,18.64964886]
[1750036437354,29.58,151.53,151.52,8.19912167]
[1750036438195,49.92981,151.57,151.52,8.19912167]
[1750036438196,41.73068833,151.57,151.52,8.19912167]
[1750036438388,36.8,151.56,151.54,8.19912167]
[1750036438594,36.8,151.56,151.53,8.19912167]
[1750036438889,36.8,151.56,151.52,8.19912167]
[1750036439289,36.8,151.56,151.54,8.19912167]
[1750036440169,36.8,151.56,151.53,8.19912167]
[1750036440610,36.8,151.56,151.54,8.19912167]
[1750036440905,7.12,151.56,151.54,8.19912167]
[1750036441082,29.72,151.55,151.54,8.19912167]
[1750036441275,29.72,151.55,151.52,8.19912167]
[1750036441470,29.72,151.55,151.53,8.19912167]
[1750036441905,29.72,151.55,151.47,2.74896533]
[1750036442079,29.72,151.55,151.51,8.19912167]
[1750036442402,29.7,151.54,151.52,8.19912167]
[1750036443111,29.7,151.54,151.48,18.64964886]
[1750036443806,29.7,151.54,151.52,8.19912167]
[1750036444111,7.12,151.56,151.53,8.19912167]
[1750036444409,7.12,151.56,151.48,25.25108068]
[1750036444410,29.86,151.55,151.49,0.28432314]
[1750036444569,7.12,151.56,151.54,8.19912167]
[1750036444774,7.12,151.56,151.49,0.28432314]
[1750036444775,7.12,151.56,151.53,18.64964886]
[1750036445571,7.12,151.56,151.55,8.19912167]
[1750036446402,7.12,151.56,151.55,26.84877053]
[1750036447880,7.12,151.56,151.55,18.64964886]
[1750036448082,7.12,151.56,151.55,26.84877053]
[1750036451609,7.12,151.56,151.53,26.0]
[1750036451800,7.12,151.56,151.55,8.19912167]
[1750036453218,7.12,151.56,151.54,18.64964886]
[1750036453419,7.12,151.56,151.55,8.19912167]
[1750036455731,7.12,151.56,151.54,18.64964886]
[1750036455912,7.12,151.56,151.55,8.19912167]
[1750036456737,7.12,151.56,151.53,26.0]
[1750036456937,7.12,151.56,151.55,8.19912167]
[1750036458437,7.12,151.56,151.53,18.64964886]
[1750036458739,7.12,151.56,151.55,8.19912167]
[1750036458923,7.12,151.56,151.55,5.0357083]
[1750036460521,7.12,151.56,151.52,1.606]
[1750036460730,7.12,151.56,151.55,5.0357083]
[1750036462435,7.12,151.56,151.51,18.64964886]
[1750036462645,29.66,151.55,151.5,26.0]
[1750036462843,29.66,151.55,151.52,5.0357083]
[1750036463243,29.66,151.55,151.5,26.0]
[1750036463410,29.66,151.55,151.52,5.0357083]
[1750036463614,29.66,151.55,151.5,26.0]
[1750036463947,29.66,151.55,151.52,5.0357083]
[1750036464720,29.66,151.55,151.53,5.0357083]
[1750036466242,29.66,151.55,151.5,26.0]
[1750036466426,29.66,151.55,151.53,5.0357083]
[1750036467460,29.66,151.55,151.51,18.64964886]
[1750036467616,29.66,151.55,151.54,5.0357083]
[1750036468025,29.56,151.55,151.54,5.0357083]
[1750036468755,29.56,151.55,151.51,18.64964886]
[1750036468918,29.56,151.55,151.54,5.0357083]
[1750036472227,29.56,151.55,151.51,18.64964886]
[1750036472534,29.56,151.55,151.53,5.0357083]
[1750036475131,7.12,151.56,151.54,5.0357083]
[1750036475331,7.12,151.56,151.55,5.0357083]
[1750036475638,36.52,151.56,151.55,5.0357083]
[1750036475845,36.52,151.56,151.53,5.0357083]
[1750036476849,29.4,151.55,151.53,5.0357083]
[1750036477026,29.4,151.55,151.51,18.64964886]
[1750036477231,29.4,151.55,151.52,5.0357083]
[1750036477636,29.4,151.55,151.53,5.0357083]
[1750036477841,29.4,151.55,151.54,5.0357083]
[1750036478449,29.36,151.55,151.54,5.0357083]
[1750036482855,29.28,151.55,151.54,23.68535716]
[1750036483034,29.28,151.55,151.54,18.64964886]
[1750036483233,29.28,151.55,151.54,23.68535716]
[1750036483849,36.36,151.56,151.54,23.68535716]
[1750036484356,36.36,151.56,151.54,18.64964886]
[1750036484553,36.36,151.56,151.55,5.0357083]
[1750036486057,36.32,151.56,151.55,5.0357083]
[1750036487654,36.32,151.56,151.54,18.64964886]
[1750036487961,36.32,151.56,151.55,5.0357083]
[1750036488166,7.32,151.6,151.56,18.64964886]
[1750036488328,29.18,151.59,151.56,18.64964886]
[1750036488655,7.32,151.6,151.58,5.0357083]
[1750036488856,29.18,151.59,151.58,5.0357083]
[1750036489458,29.18,151.59,151.57,5.0357083]
[1750036489665,29.18,151.59,151.56,5.0357083]
[1750036491540,29.18,151.59,151.57,5.0357083]
[1750036492634,29.18,151.59,151.53,18.64964886]
[1750036492939,29.18,151.59,151.57,5.0357083]
[1750036494176,7.32,151.6,151.57,5.0357083]
[1750036494349,29.1,151.58,151.57,5.0357083]
[1750036494554,29.1,151.58,151.53,25.24892793]
[1750036494760,29.1,151.58,151.57,5.0357083]
[1750036496750,29.1,151.58,151.56,5.0357083]
[1750036497442,29.1,151.58,151.52,18.64964886]
[1750036497642,34.1357083,151.58,151.53,5.0357083]
[1750036498857,34.1357083,151.58,151.5,44.64964886]
[1750036499066,5.0357083,151.56,151.51,5.0357083]
[1750036499253,29.06,151.55,151.51,5.0357083]
[1750036499570,29.06,151.55,151.52,5.0357083]
[1750036499778,29.06,151.55,151.51,5.0357083]
[1750036499958,34.0957083,151.55,151.5,5.0357083]
[1750036500161,34.0957083,151.55,151.48,18.64964886]
[1750036500362,5.0357083,151.54,151.49,5.0357083]
[1750036500554,5.0357083,151.53,151.48,5.0357083]
[1750036500757,29.04,151.52,151.48,5.0357083]
[1750036501569,34.0757083,151.52,151.47,7.78467363]
[1750036501884,5.0357083,151.49,151.47,2.74896533]
[1750036502067,35.6716,151.52,151.47,2.74896533]
[1750036502068,36.06,151.48,151.47,2.74896533]
[1750036502252,36.14,151.48,151.47,7.78467363]
[1750036502448,36.14,151.48,151.47,2.74896533]
[1750036504465,36.14,151.48,151.47,7.78467363]
[1750036505260,36.16,151.48,151.47,7.78467363]
[1750036505462,36.16,151.48,151.47,2.74896533]
[1750036505667,6.6316,151.52,151.47,7.78467363]
[1750036505979,36.14,151.51,151.49,5.0357083]
[1750036506186,29.1,151.5,151.49,5.0357083]
[1750036506478,7.04,151.51,151.49,5.0357083]
[1750036506661,7.04,151.51,151.47,21.39861419]
[1750036506662,7.04,151.51,151.5,5.0357083]
[1750036508661,7.04,151.51,151.5,49.68535716]
[1750036509380,7.04,151.51,151.5,44.64964886]
[1750036509724,7.04,151.51,151.5,49.68535716]
[1750036510580,0.28432314,151.59,151.51,18.64964886]
[1750036510887,7.04,151.55,151.51,23.68535716]
[1750036511083,29.08,151.54,151.51,23.68535716]
[1750036511880,29.08,151.54,151.52,5.0357083]
[1750036512065,7.04,151.55,151.53,5.0357083]
[1750036512459,29.06,151.54,151.52,5.0357083]
[1750036512673,29.06,151.54,151.51,23.68535716]
[1750036513084,29.06,151.54,151.5,31.0357083]
[1750036513460,29.06,151.54,151.51,5.0357083]
[1750036513972,29.04,151.54,151.52,23.68535716]
[1750036514180,29.04,151.54,151.51,5.0357083]
[1750036514482,12.0757083,151.55,151.51,5.0357083]
[1750036514690,29.04,151.54,151.51,5.0357083]
[1750036515396,29.04,151.54,151.52,5.0357083]
[1750036515794,7.04,151.55,151.52,5.0357083]
[1750036516095,29.08,151.53,151.52,5.0357083]
[1750036516663,7.04,151.55,151.52,5.0357083]
[1750036516868,29.08,151.54,151.53,5.0357083]
[1750036517081,29.08,151.54,151.51,18.64964886]
[1750036517265,29.08,151.54,151.51,23.68535716]
[1750036517469,29.08,151.54,151.5,31.0357083]
[1750036517664,5.0357083,151.52,151.48,18.64964886]
[1750036517866,29.12,151.51,151.48,18.64964886]
[1750036518076,29.12,151.51,151.47,7.78467363]
[1750036518391,34.1557083,151.51,151.47,2.74896533]
[1750036518688,29.12,151.51,151.47,2.74896533]
[1750036518899,29.12,151.51,151.48,5.0357083]
[1750036520380,29.12,151.51,151.49,5.0357083]
[1750036520990,29.12,151.51,151.47,2.74896533]
[1750036521191,34.1557083,151.51,151.47,2.74896533]
[1750036521387,5.0357083,151.5,151.47,2.74896533]
[1750036521790,5.0357083,151.48,151.47,2.74896533]